bitfinex/quotes_SOLUSD_20250403
["timestamp","ask_amount","ask_price","bid_price","bid_amount"]
[1743687167426,0.03,114.87,114.83,48.79951536]
[1743687167631,0.03,114.87,114.84,48.79951536]
[1743687168015,149.88,114.86,114.72,26.5]
[1743687168335,18.963972,114.87,114.76,26.0]
[1743687168521,48.82951536,114.87,114.81,48.79951536]
[1743687168901,0.03,114.87,114.77,0.14216157]
[1743687169100,48.79951536,114.84,114.76,26.0]
[1743687169333,48.79951536,114.86,114.8,48.79951536]
[1743687169634,0.03,114.87,114.77,48.79951536]
[1743687169635,48.79951536,114.83,114.77,48.79951536]
[1743687169813,57.50901536,114.82,114.76,48.79951536]
[1743687170011,48.79951536,114.81,114.73,326.16]
[1743687170217,8.7095,114.82,114.73,48.79951536]
[1743687170533,48.79951536,114.78,114.73,48.79951536]
[1743687170734,18.933972,114.81,114.73,48.79951536]
[1743687170910,144.4095,114.82,114.75,48.79951536]
[1743687171114,48.79951536,114.81,114.76,48.79951536]
[1743687171310,48.79951536,114.79,114.7,0.14216157]
[1743687171508,48.79951536,114.78,114.72,48.79951536]
[1743687171827,21.7768,114.81,114.72,48.79951536]
[1743687172005,48.79951536,114.8,114.75,48.79951536]
[1743687172201,48.79951536,114.81,114.76,48.79951536]
[1743687172426,8.7092,114.82,114.77,48.79951536]
[1743687172629,57.50871536,114.82,114.76,48.79951536]
[1743687172931,48.79951536,114.81,114.76,48.79951536]
[1743687173138,57.50871536,114.82,114.76,48.79951536]
[1743687173336,57.50821536,114.83,114.77,48.79951536]
[1743687173519,8.7087,114.83,114.77,48.79951536]
[1743687173845,48.79951536,114.83,114.77,48.79951536]
[1743687174008,8.7077,114.84,114.78,48.79951536]
[1743687174214,48.79951536,114.86,114.8,48.79951536]
[1743687174515,8.7355,114.87,114.83,48.79951536]
[1743687175038,8.7355,114.87,114.8,48.79951536]
[1743687175209,0.03,114.87,114.86,48.79951536]
[1743687176111,135.7,114.99,114.87,0.14216157]
[1743687176366,135.7,114.98,114.86,8.7062]
[1743687176638,48.79951536,114.94,114.86,8.7062]
[1743687176843,48.79951536,114.94,114.8,48.79951536]
[1743687176844,48.79951536,114.89,114.8,48.79951536]
[1743687177032,48.79951536,114.88,114.83,48.79951536]
[1743687177234,0.28432314,114.92,114.8,79.42947693]
[1743687177411,0.28432314,114.9,114.82,48.79951536]
[1743687177744,48.79951536,114.87,114.79,16.4262]
[1743687178033,30.4638,114.89,114.82,48.79951536]
[1743687178237,30.4638,114.89,114.8,8.7105]
[1743687178238,48.79951536,114.87,114.8,8.7105]
[1743687178446,30.4638,114.89,114.82,48.79951536]
[1743687178652,48.79951536,114.88,114.82,48.79951536]
[1743687179140,48.79951536,114.88,114.8,8.7105]
[1743687179307,8.705,114.88,114.83,48.79951536]
[1743687179738,8.7043,114.89,114.84,48.79951536]
[1743687180348,48.79951536,114.88,114.8,8.7108]
[1743687180553,30.4642,114.89,114.79,1.5695]
[1743687180741,48.79951536,114.86,114.79,1.5695]
[1743687180946,30.60636157,114.89,114.81,48.79951536]
[1743687181253,8.707,114.85,114.8,48.79951536]
[1743687181456,57.50651536,114.85,114.76,0.14216157]
[1743687181676,8.707,114.85,114.81,48.79951536]
[1743687181875,8.7065,114.86,114.81,48.79951536]
[1743687182150,8.7065,114.86,114.78,0.14216157]
[1743687182360,144.4065,114.86,114.73,50.43221536]
[1743687182557,48.79951536,114.81,114.75,48.79951536]
[1743687182736,154.49181043,114.85,114.77,48.79951536]
[1743687182928,135.7,114.85,114.79,48.79951536]
[1743687183131,48.79951536,114.85,114.79,48.79951536]
[1743687183440,79.27661536,114.84,114.78,48.79951536]
[1743687183641,30.4771,114.84,114.78,48.79951536]
[1743687184260,8.7073,114.85,114.82,48.79951536]
[1743687184455,79.25801536,114.91,114.84,48.79951536]
[1743687184627,48.79951536,114.88,114.8,6.4205]
[1743687184828,48.79951536,114.88,114.82,48.79951536]
[1743687185053,154.49181043,114.9,114.83,48.79951536]
[1743687185358,48.79951536,114.87,114.8,6.4205]
[1743687185657,154.633972,114.88,114.78,339.62]
[1743687185855,154.633972,114.88,114.81,48.79951536]
[1743687186034,48.79951536,114.87,114.82,48.79951536]
[1743687186234,48.79951536,114.86,114.78,339.62]
[1743687186438,48.79951536,114.84,114.79,48.79951536]
[1743687186630,48.79951536,114.84,114.75,6.3691]
[1743687186834,67.73348736,114.87,114.77,48.79951536]
[1743687186835,48.79951536,114.82,114.77,48.79951536]
[1743687187156,48.79951536,114.82,114.73,64.03221536]
[1743687187332,70.57081536,114.83,114.77,48.79951536]
[1743687187533,8.7077,114.84,114.79,48.79951536]
[1743687187724,8.7077,114.84,114.8,48.79951536]
[1743687187926,48.79951536,114.83,114.77,0.063]
[1743687188140,30.4771,114.84,114.77,0.063]
[1743687188438,30.4771,114.84,114.79,48.79951536]
[1743687188830,8.7054,114.87,114.83,48.79951536]
[1743687189362,8.7047,114.88,114.84,48.79951536]
[1743687189660,8.7047,114.88,114.8,48.79951536]
[1743687190159,8.7047,114.88,114.84,48.79951536]
[1743687190729,8.7047,114.88,114.82,6.2199]
[1743687190933,0.03,114.89,114.87,48.79951536]
[1743687191945,0.03,114.89,114.84,1.594]
[1743687192359,0.03,114.89,114.84,50.39351536]
[1743687192558,48.79951536,114.88,114.8,325.94]
[1743687192749,48.79951536,114.87,114.8,325.94]
[1743687192956,48.79951536,114.88,114.83,48.79951536]
[1743687193261,0.03,114.89,114.8,325.94]
[1743687193262,48.79951536,114.87,114.8,325.94]
[1743687193559,79.26641536,114.88,114.82,48.79951536]
[1743687193755,48.79951536,114.86,114.78,1.5652]
[1743687193956,30.4669,114.88,114.81,48.79951536]
[1743687194163,48.79951536,114.87,114.81,48.79951536]
[1743687194540,48.79951536,114.87,114.78,1.5652]
[1743687194541,48.79951536,114.85,114.78,1.5652]
[1743687194739,48.79951536,114.83,114.77,0.063]
[1743687195152,48.79951536,114.83,114.78,48.79951536]
[1743687195565,48.79951536,114.82,114.77,0.063]
[1743687195757,166.1771,114.84,114.77,0.063]
[1743687195961,166.1771,114.84,114.79,48.79951536]
[1743687196266,8.7077,114.84,114.8,48.79951536]
[1743687196667,8.7047,114.88,114.81,26.0]
[1743687196866,0.03,114.89,114.87,48.79951536]
[1743687197041,0.03,114.89,114.88,48.79951536]
[1743687197459,0.03,114.89,114.88,57.50421536]
[1743687198245,8.7004,114.94,114.88,57.64637693]
[1743687198455,8.6948,115.01,114.93,48.79951536]
[1743687198667,135.7,115.14,115.0,48.79951536]
[1743687198927,48.79951536,115.07,115.01,48.79951536]
[1743687199163,97.59903072,115.02,114.88,8.7047]
[1743687199369,48.79951536,114.98,114.88,8.7047]
[1743687199539,135.84216157,115.01,114.89,8.84546157]
[1743687199540,135.7,115.0,114.89,8.84546157]
[1743687199745,48.79951536,114.99,114.93,48.79951536]
[1743687200071,48.79951536,114.97,114.88,8.7044]
[1743687200275,166.1347,115.0,114.92,48.79951536]
[1743687200444,30.4347,115.0,114.93,48.79951536]
[1743687200639,30.4347,115.0,114.89,0.42648471]
[1743687200860,48.79951536,114.99,114.93,48.79951536]
[1743687201240,8.6956,115.0,114.97,48.79951536]
[1743687201440,48.79951536,114.99,114.88,30.4662]
[1743687201641,30.4347,115.0,114.94,48.79951536]
[1743687201642,8.6971,114.98,114.94,48.79951536]
[1743687201961,57.49661536,114.98,114.93,48.79951536]
[1743687202166,8.6971,114.98,114.93,48.79951536]
[1743687202345,8.6971,114.98,114.9,8.7032]
[1743687202346,8.6971,114.98,114.94,48.79951536]
[1743687202542,8.6948,115.01,114.97,48.79951536]
[1743687202746,8.6948,115.01,114.94,48.79951536]
[1743687202747,8.6918,115.05,115.0,48.79951536]
[1743687203081,8.7212,115.06,114.96,0.14216157]
[1743687203451,48.79951536,115.03,114.94,62.21951536]
[1743687203777,79.22891536,115.02,114.96,48.79951536]
[1743687203954,57.49361536,115.02,114.94,22.1201]
[1743687204145,0.03,115.06,114.94,8.7001]
[1743687204345,0.03,115.06,114.99,48.79951536]
[1743687204574,48.79951536,115.02,114.95,13.4]
[1743687204780,144.3918,115.05,114.99,48.79951536]
[1743687205076,48.79951536,115.03,114.95,13.4]
[1743687205266,144.3918,115.05,114.99,48.79951536]
[1743687205447,8.7213,115.06,115.02,48.79951536]
[1743687206163,0.03,115.06,115.03,48.79951536]
[1743687206347,0.03,115.06,115.05,48.79951536]
[1743687206992,8.685,115.14,115.06,0.14216157]
[1743687207158,32.59914714,115.31,115.13,48.79951536]
[1743687207364,13.49029197,115.27,115.21,48.79951536]
[1743687207690,13.49029197,115.27,115.16,8.6834]
[1743687207691,144.376,115.26,115.16,8.6834]
[1743687207855,157.3923,115.25,115.15,8.684]
[1743687208056,135.7,115.25,115.15,8.684]
[1743687208256,135.7,115.25,115.19,48.79951536]
[1743687208686,135.7,115.25,115.18,48.79951536]
[1743687208883,135.7,115.25,115.15,0.14216157]
[1743687209080,48.79951536,115.22,115.14,325.64]
[1743687209289,134.55272263,115.25,115.14,334.325]
[1743687209458,134.55272263,115.24,115.13,0.14216157]
[1743687209659,30.3739,115.23,115.12,8.6865]
[1743687209960,30.3739,115.23,115.13,0.14216157]
[1743687210183,134.55272263,115.22,115.11,0.14216157]
[1743687210387,134.55272263,115.22,115.15,48.79951536]
[1743687210688,73.7653,115.23,115.14,48.79951536]
[1743687210871,30.3739,115.23,115.15,48.79951536]
[1743687211070,30.3739,115.23,115.16,48.79951536]
[1743687211071,48.79951536,115.21,115.16,48.79951536]
[1743687211261,30.3739,115.23,115.17,48.79951536]
[1743687211470,8.6782,115.23,115.18,48.79951536]
[1743687211672,30.3687,115.25,115.19,48.79951536]
[1743687211872,8.6767,115.25,115.2,48.79951536]
[1743687212199,153.20237149,115.24,115.13,26.0]
[1743687212384,30.3686,115.25,115.17,48.79951536]
[1743687212585,30.3686,115.25,115.19,48.79951536]
[1743687212896,30.3686,115.25,115.18,48.79951536]
[1743687213084,134.55272263,115.24,115.12,0.14216157]
[1743687213404,48.79951536,115.22,115.16,48.79951536]
[1743687213593,57.48041536,115.2,115.15,48.79951536]
[1743687213795,8.679,115.22,115.16,48.79951536]
[1743687214099,8.6782,115.23,115.16,0.14216157]
[1743687214288,8.6782,115.23,115.18,48.79951536]
[1743687214489,57.47771536,115.23,115.17,48.79951536]
[1743687214680,48.79951536,115.22,115.16,48.79951536]
[1743687214886,8.6782,115.23,115.19,48.79951536]
[1743687215071,8.6782,115.23,115.16,0.14216157]
[1743687215274,8.6782,115.23,115.19,48.79951536]
[1743687215592,21.694,115.24,115.18,48.79951536]
[1743687215797,48.79951536,115.23,115.17,48.79951536]
[1743687216167,134.55272263,115.22,115.13,8.6858]
[1743687216483,48.79951536,115.21,115.13,8.6858]
[1743687216873,183.35223799,115.22,115.13,8.6858]
[1743687217075,48.79951536,115.21,115.16,48.79951536]
[1743687217303,48.79951536,115.22,115.16,48.79951536]
[1743687217477,156.24672263,115.24,115.17,48.79951536]
[1743687217675,70.49351536,115.24,115.14,8.685]
[1743687217877,18.64964886,115.23,115.14,8.685]
[1743687218088,21.694,115.24,115.16,48.79951536]
[1743687218411,4.81489197,115.27,115.19,0.14216157]
[1743687218576,4.81489197,115.27,115.19,26.14216157]
[1743687218990,4.81489197,115.27,115.19,26.0]
[1743687218991,53.61440733,115.27,115.19,26.0]
[1743687219195,4.81489197,115.27,115.23,48.79951536]
[1743687219514,4.81489197,115.27,115.24,48.79951536]
[1743687219680,4.81489197,115.27,115.24,8.6773]
[1743687219871,4.81489197,115.27,115.26,48.79951536]
[1743687220073,4.81489197,115.27,115.24,30.3711]
[1743687220301,4.81489197,115.27,115.26,48.79951536]
[1743687220509,4.81489197,115.27,115.24,8.6773]
[1743687220806,4.81489197,115.27,115.26,48.79951536]
[1743687221104,4.81489197,115.27,115.25,48.79951536]
[1743687221279,4.81489197,115.27,115.24,8.6773]
[1743687221484,4.81489197,115.27,115.26,48.79951536]
[1743687221689,4.81489197,115.27,115.26,57.47551536]
[1743687221992,4.81489197,115.27,115.26,48.79951536]
[1743687222190,4.81489197,115.27,115.23,30.3739]
[1743687222587,4.81489197,115.27,115.26,48.79951536]
[1743687223215,4.81489197,115.27,115.26,48.94167693]
[1743687223406,21.6655,115.4,115.29,26.0]
[1743687223593,156.21822263,115.4,115.29,74.79951536]
[1743687223908,15.2014,115.41,115.35,48.79951536]
[1743687224113,21.6565,115.44,115.34,0.14216157]
[1743687224301,164.86642263,115.46,115.34,26.14216157]
[1743687224511,164.86642263,115.46,115.38,48.31021856]
[1743687224710,30.3137,115.46,115.36,48.31021856]
[1743687225097,48.31021856,115.45,115.36,48.31021856]
[1743687225302,78.62391856,115.46,115.41,48.31021856]
[1743687225505,30.3137,115.46,115.37,0.14216157]
[1743687225803,8.661,115.46,115.42,48.31021856]
[1743687226006,8.661,115.46,115.37,0.14216157]
[1743687226311,8.661,115.46,115.41,48.31021856]
[1743687226519,8.661,115.46,115.42,48.31021856]
[1743687227024,8.6605,115.47,115.4,0.14216157]
[1743687227197,8.6572,115.51,115.46,48.31021856]
[1743687227398,0.47598768,115.54,115.45,0.14216157]
[1743687227593,143.20842263,115.53,115.4,26.0]
[1743687227797,30.2951,115.53,115.41,26.14216157]
[1743687227998,153.20237149,115.52,115.41,26.0]
[1743687228210,134.55272263,115.52,115.41,26.0]
[1743687228410,48.31021856,115.47,115.36,48.31021856]
[1743687228697,0.28432314,115.47,115.39,48.31021856]
[1743687228921,134.55272263,115.46,115.42,48.31021856]
[1743687229109,48.31021856,115.47,115.42,48.31021856]
[1743687229424,48.31021856,115.44,115.38,48.31021856]
[1743687229624,48.31021856,115.44,115.32,14.7369]
[1743687229625,8.664,115.42,115.32,14.7369]
[1743687230010,8.664,115.42,115.37,48.31021856]
[1743687230228,56.97421856,115.42,115.37,48.31021856]
[1743687230422,8.664,115.42,115.37,48.31021856]
[1743687230723,0.14216157,115.47,115.36,48.31021856]
[1743687230724,134.55272263,115.46,115.36,48.31021856]
[1743687230912,134.55272263,115.46,115.34,0.14216157]
[1743687231226,48.31021856,115.44,115.38,48.31021856]
[1743687231409,48.31021856,115.43,115.37,48.31021856]
[1743687231716,48.31021856,115.43,115.32,13.1]
[1743687231717,30.3266,115.41,115.32,13.1]
[1743687231922,30.3266,115.41,115.37,48.31021856]
[1743687232120,30.3266,115.41,115.29,48.31021856]
[1743687232323,30.3266,115.41,115.36,48.31021856]
[1743687232504,78.63681856,115.41,115.35,48.31021856]
[1743687232705,30.3266,115.41,115.35,48.31021856]
[1743687232930,73.6504,115.41,115.3,0.14216157]
[1743687233230,30.3266,115.41,115.34,48.31021856]
[1743687233531,48.31021856,115.39,115.31,26.0]
[1743687233828,30.3397,115.36,115.27,36.59782781]
[1743687234000,8.6685,115.36,115.31,48.31021856]
[1743687234322,8.6655,115.4,115.35,48.31021856]
[1743687234511,8.6655,115.4,115.32,26.0]
[1743687234713,8.6655,115.4,115.35,48.31021856]
[1743687234925,56.97571856,115.4,115.32,26.0]
[1743687235133,30.3292,115.4,115.29,48.31021856]
[1743687235312,48.31021856,115.38,115.29,48.45238013]
[1743687235633,48.31021856,115.38,115.32,48.31021856]
[1743687235803,162.15219463,115.4,115.27,36.59782781]
[1743687236005,48.31021856,115.34,115.27,36.59782781]
[1743687236219,18.933972,115.37,115.27,36.59782781]
[1743687236422,48.31021856,115.34,115.27,36.59782781]
[1743687236647,48.31021856,115.33,115.27,84.90804637]
[1743687236950,13.26,115.35,115.27,36.59782781]
[1743687237232,13.26,115.35,115.31,48.31021856]
[1743687237435,13.26,115.35,115.3,0.063]
[1743687237647,48.31021856,115.36,115.3,48.37321856]
[1743687237813,48.31021856,115.34,115.3,0.063]
[1743687238013,18.933972,115.36,115.3,0.063]
[1743687238332,48.31021856,115.32,115.3,0.063]
[1743687238530,48.31021856,115.31,115.3,0.063]
[1743687239234,48.31021856,115.32,115.3,0.063]
[1743687239410,48.31021856,115.31,115.27,36.59782781]
[1743687239615,48.31021856,115.29,115.23,48.31021856]
[1743687239821,8.6745,115.28,115.23,48.31021856]
[1743687240019,48.31021856,115.27,115.19,8.6813]
[1743687240220,30.3608,115.28,115.22,48.31021856]
[1743687240434,48.31021856,115.27,115.22,48.31021856]
[1743687240638,30.3608,115.28,115.23,48.31021856]
[1743687240816,8.6745,115.28,115.19,8.6813]
[1743687241010,78.67101856,115.28,115.22,48.31021856]
[1743687241348,48.31021856,115.27,115.22,48.31021856]
[1743687241551,48.31021856,115.24,115.16,324.46]
[1743687241715,8.6798,115.21,115.15,16.99860442]
[1743687241915,56.99001856,115.21,115.13,8.82786157]
[1743687242151,48.31021856,115.19,115.11,13.26]
[1743687242324,48.31021856,115.19,115.14,48.31021856]
[1743687242649,48.31021856,115.19,115.13,48.31021856]
[1743687242851,48.31021856,115.19,115.11,21.947]
[1743687242852,30.3793,115.21,115.15,48.31021856]
[1743687243029,48.31021856,115.2,115.14,48.31021856]
[1743687243236,48.31021856,115.19,115.14,48.31021856]
[1743687243427,48.31021856,115.19,115.11,8.687]
[1743687243615,48.31021856,115.18,115.13,48.31021856]
[1743687243816,20.0,115.29,115.15,6.2686]
[1743687244119,0.5,115.36,115.25,48.31021856]
[1743687244120,48.31021856,115.31,115.25,48.31021856]
[1743687244329,48.31021856,115.27,115.21,48.31021856]
[1743687244532,6.494,115.31,115.24,48.31021856]
[1743687244853,6.494,115.31,115.27,48.31021856]
[1743687245025,48.31021856,115.34,115.28,48.31021856]
[1743687245348,48.31021856,115.33,115.24,13.36]
[1743687245533,135.7,115.36,115.28,48.31021856]
[1743687245731,48.31021856,115.33,115.27,48.31021856]
[1743687245931,56.98131856,115.33,115.27,48.31021856]
[1743687246135,48.31021856,115.29,115.21,8.6798]
[1743687246322,48.31021856,115.27,115.21,56.99001856]
[1743687246651,48.31021856,115.27,115.21,48.31021856]
[1743687246820,48.31021856,115.26,115.2,48.31021856]
[1743687247242,135.7,115.28,115.19,22.0013]
[1743687247457,48.31021856,115.26,115.21,48.31021856]
[1743687247637,135.7,115.28,115.21,48.31021856]
[1743687247824,149.02,115.32,115.25,48.31021856]
[1743687248026,184.01021856,115.32,115.26,48.31021856]
[1743687248249,48.31021856,115.31,115.25,48.31021856]
[1743687248455,135.7,115.32,115.27,48.31021856]
[1743687248623,135.7,115.34,115.23,8.6782]
[1743687248816,144.3704,115.34,115.23,30.3739]
[1743687249024,6.1785,115.42,115.33,48.31021856]
[1743687249361,14.8427,115.42,115.38,48.31021856]
[1743687249522,14.8427,115.42,115.3,21.45991435]
[1743687249523,14.8427,115.42,115.33,26.0]
[1743687249723,48.31021856,115.41,115.3,21.45991435]
[1743687250033,8.6655,115.4,115.36,48.31021856]
[1743687250223,48.31021856,115.37,115.3,8.6727]
[1743687250424,135.7,115.38,115.31,48.31021856]
[1743687250728,26.0,115.3,115.21,1.6613]
[1743687250924,48.31021856,115.29,115.22,8.6788]
[1743687251124,48.31021856,115.27,115.21,48.31021856]
[1743687251329,135.7,115.27,115.19,57.05421856]
[1743687251545,48.31021856,115.24,115.19,0.063]
[1743687251735,13.28,115.25,115.2,48.31021856]
[1743687251942,48.31021856,115.27,115.21,48.31021856]
[1743687252143,144.3732,115.3,115.21,8.6795]
[1743687252322,48.31021856,115.26,115.19,0.063]
[1743687252523,48.31021856,115.2,115.19,0.063]
[1743687252921,135.7,115.24,115.19,0.063]
[1743687253157,48.31021856,115.2,115.19,0.063]
[1743687254054,56.99071856,115.2,115.19,0.063]
[1743687254347,48.31021856,115.21,115.19,0.063]
[1743687254849,14.8293,115.22,115.19,0.063]
[1743687255055,56.98821856,115.24,115.19,48.37321856]
[1743687255553,8.678,115.24,115.19,0.063]
[1743687255752,48.31021856,115.21,115.19,0.063]
[1743687255946,18.64964886,115.22,115.19,0.063]
[1743687256127,48.31021856,115.2,115.19,0.063]
[1743687256329,8.6798,115.21,115.19,0.063]
[1743687256548,48.31021856,115.2,115.19,0.063]
[1743687257331,48.31021856,115.2,115.07,13.463]
[1743687257332,135.7,115.14,115.07,0.063]
[1743687257552,13.4,115.18,115.13,48.31021856]
[1743687257751,61.71021856,115.18,115.13,48.31021856]
[1743687257949,48.31021856,115.16,115.1,48.31021856]
[1743687258257,56.99451856,115.15,115.07,0.063]
[1743687258755,48.31021856,115.11,115.07,0.063]
[1743687258955,48.31021856,115.1,115.07,0.063]
[1743687259178,48.31021856,115.08,115.07,0.063]
[1743687259362,13.42,115.11,115.07,0.063]
[1743687259669,106.91671856,115.15,115.07,0.063]
[1743687259670,30.3951,115.15,115.08,48.31021856]
[1743687259841,48.31021856,115.12,115.07,48.37321856]
[1743687260042,8.6888,115.09,115.07,0.063]
[1743687260348,48.31021856,115.08,115.07,0.063]
[1743687260747,8.6888,115.09,115.07,0.063]
[1743687261062,48.31021856,115.08,115.07,0.063]
[1743687261266,8.6888,115.09,115.07,0.063]
[1743687261464,48.31021856,115.08,115.07,0.063]
[1743687261888,48.31021856,115.04,115.03,0.063]
[1743687262175,8.6926,115.04,115.03,0.063]
[1743687262376,57.00281856,115.04,115.03,0.063]
[1743687262544,184.01021856,115.08,115.03,0.063]
[1743687262744,48.31021856,115.07,115.03,0.063]
[1743687262965,48.31021856,115.1,115.05,48.31021856]
[1743687263141,56.99771856,115.11,115.06,0.063]
[1743687263344,48.31021856,115.1,115.06,0.063]
[1743687263768,8.6865,115.12,115.06,48.37321856]
[1743687263952,48.31021856,115.11,115.06,48.37321856]
[1743687264146,48.31021856,115.11,115.06,0.063]
[1743687264147,48.31021856,115.08,115.06,0.063]
[1743687264345,8.689,115.09,115.06,0.063]
[1743687264795,48.31021856,115.07,114.96,18.64964886]
[1743687264950,48.31021856,115.07,115.02,48.31021856]
[1743687265342,8.689,115.09,115.02,48.31021856]
[1743687265542,8.689,115.09,115.03,48.31021856]
[1743687265861,48.31021856,115.04,114.96,30.4452]
[1743687266059,8.6911,115.06,114.99,8.6964]
[1743687266379,8.6911,115.06,114.98,48.31021856]
[1743687266380,166.1188,115.06,114.98,48.31021856]
[1743687266596,48.31021856,115.03,114.97,8.6979]
[1743687266902,48.31021856,115.0,114.95,0.063]
[1743687267062,18.933972,115.04,114.95,0.063]
[1743687267063,48.31021856,114.99,114.95,0.063]
[1743687267398,135.7,115.03,114.95,0.063]
[1743687267602,48.31021856,114.98,114.95,0.063]
[1743687267769,135.7,115.03,114.95,0.063]
[1743687267969,48.31021856,114.99,114.95,0.063]
[1743687268168,57.00671856,114.99,114.95,0.063]
[1743687268384,8.6948,115.01,114.95,0.063]
[1743687268578,48.31021856,114.99,114.95,0.063]
[1743687269085,48.31021856,115.0,114.95,48.37321856]
[1743687269397,48.31021856,114.99,114.95,0.063]
[1743687269593,48.31021856,114.98,114.95,0.063]
[1743687269777,48.31021856,114.96,114.95,0.063]
[1743687270318,57.00881856,114.96,114.95,0.063]
[1743687270670,144.3959,115.0,114.95,0.063]
[1743687270865,8.6959,115.0,114.95,0.063]
[1743687271067,48.31021856,114.99,114.95,0.063]
[1743687271370,8.6959,115.0,114.95,0.063]
[1743687271569,48.31021856,114.99,114.95,0.063]
[1743687271782,48.31021856,115.0,114.95,48.37321856]
[1743687271977,48.31021856,114.99,114.95,0.063]
[1743687272182,48.31021856,114.98,114.95,0.063]
[1743687272474,48.31021856,114.96,114.95,0.063]
[1743687273090,149.04,114.97,114.95,0.063]
[1743687273291,48.31021856,114.96,114.95,0.063]
[1743687273807,61.65021856,114.97,114.95,0.063]
[1743687273975,48.31021856,114.97,114.95,0.063]
[1743687274194,8.6933,115.03,114.96,48.31021856]
[1743687274412,48.31021856,115.01,114.95,0.063]
[1743687274615,48.31021856,115.01,114.96,48.31021856]
[1743687274811,48.31021856,115.0,114.95,48.37321856]
[1743687275013,48.31021856,114.98,114.95,0.063]
[1743687275211,135.7,115.02,114.95,0.063]
[1743687275212,48.31021856,114.97,114.95,0.063]
[1743687275418,48.31021856,114.96,114.95,0.063]
[1743687275727,184.01021856,114.96,114.95,0.063]
[1743687275926,66.95986742,114.96,114.95,0.063]
[1743687276113,88.91846742,114.96,114.95,0.063]
[1743687276735,13.26,114.96,114.95,0.063]
[1743687276891,48.31021856,114.97,114.95,0.063]
[1743687277230,48.31021856,114.96,114.95,0.063]
[1743687277390,30.4374,114.99,114.95,0.063]
[1743687277391,8.6964,114.99,114.95,0.063]
[1743687278021,8.6964,114.99,114.92,48.31021856]
[1743687278022,48.31021856,114.97,114.92,48.31021856]
[1743687278226,0.03,115.0,114.93,48.31021856]
[1743687278433,8.7256,115.0,114.89,8.7039]
[1743687278594,0.28432314,114.98,114.89,8.7039]
[1743687278794,0.42648471,114.98,114.9,48.31021856]
[1743687279102,48.31021856,114.94,114.89,8.7039]
[1743687279310,18.64964886,114.99,114.9,48.31021856]
[1743687279524,48.31021856,114.96,114.91,48.31021856]
[1743687279822,48.31021856,114.95,114.9,48.31021856]
[1743687279998,18.64964886,114.99,114.91,48.31021856]
[1743687280327,48.31021856,114.96,114.91,57.01211856]
[1743687280619,135.7,114.97,114.91,57.01211856]
[1743687280834,184.01021856,114.97,114.92,48.31021856]
[1743687281011,135.7,114.97,114.92,48.31021856]
[1743687281211,135.7,114.97,114.89,21.7599]
[1743687281212,48.31021856,114.94,114.89,8.7032]
[1743687281420,161.75,114.97,114.89,57.01341856]
[1743687281599,48.31021856,114.94,114.89,57.01341856]
[1743687281800,48.31021856,114.94,114.88,93.72238651]
[1743687282615,48.31021856,114.93,114.88,45.41216795]
[1743687282823,135.7,114.95,114.88,93.72238651]
[1743687283127,48.31021856,114.93,114.88,93.72238651]
[1743687283328,135.7,114.93,114.89,48.31021856]
[1743687283702,184.01021856,114.93,114.88,45.41216795]
[1743687283898,184.01021856,114.93,114.88,93.72238651]
[1743687284103,48.31021856,114.91,114.88,36.70786795]
[1743687284322,48.31021856,114.89,114.85,8.7068]
[1743687284522,184.01021856,114.91,114.85,57.01701856]
[1743687284729,184.01021856,114.91,114.87,48.31021856]
[1743687284730,135.7,114.91,114.87,48.31021856]
[1743687284907,6.179,114.94,114.89,48.31021856]
[1743687284908,48.31021856,114.94,114.89,48.31021856]
[1743687285105,135.7,114.93,114.84,8.7076]
[1743687285346,48.31021856,114.9,114.84,48.31021856]
[1743687285511,135.7,114.91,114.86,48.31021856]
[1743687285927,184.01021856,114.91,114.86,48.31021856]
[1743687286527,48.31021856,114.9,114.84,48.31021856]
[1743687286726,135.7,114.91,114.83,0.063]
[1743687286727,48.31021856,114.88,114.83,0.063]
[1743687286908,48.31021856,114.88,114.83,48.37321856]
[1743687287233,135.7,114.91,114.85,48.31021856]
[1743687287434,135.7,114.91,114.86,57.01641856]
[1743687287636,184.01021856,114.92,114.86,57.01641856]